bitfinex/quotes_BTCUSD_20250522
["timestamp","ask_amount","ask_price","bid_price","bid_amount"]
[1747884320401,0.23105154,110800.0,110790.0,1.02513064]
[1747884320611,0.03249674,110800.0,110790.0,1.472997]
[1747884321211,0.03249674,110800.0,110790.0,1.456897]
[1747884321419,0.03249674,110800.0,110790.0,1.41527971]
[1747884321629,0.05054597,110800.0,110790.0,1.43333097]
[1747884321840,0.03249674,110800.0,110790.0,1.43333097]
[1747884322055,0.03249674,110800.0,110790.0,1.78913097]
[1747884322259,0.03249674,110800.0,110790.0,1.80553097]
[1747884322476,0.03249674,110800.0,110790.0,1.82007182]
[1747884324244,0.03249674,110800.0,110790.0,1.78787182]
[1747884324899,0.03249674,110800.0,110790.0,1.80437182]
[1747884325077,0.03249674,110800.0,110790.0,1.81987182]
[1747884326448,0.03249674,110800.0,110790.0,2.50427182]
[1747884327650,0.03149674,110800.0,110790.0,2.50427182]
[1747884328159,0.03149674,110800.0,110790.0,2.48977182]
[1747884328556,0.03049674,110800.0,110790.0,2.48977182]
[1747884328767,0.03049674,110800.0,110790.0,2.50507182]
[1747884329924,0.03049674,110800.0,110790.0,2.50607182]
[1747884330657,0.03049674,110800.0,110790.0,2.20355182]
[1747884330866,0.03049674,110800.0,110790.0,2.47419182]
[1747884331504,0.03049674,110800.0,110790.0,2.04200734]
[1747884331713,0.08024638,110800.0,110790.0,1.59681555]
[1747884331928,0.06219674,110800.0,110790.0,1.83998505]
[1747884332132,0.03049674,110800.0,110790.0,2.17998505]
[1747884332553,0.03049674,110800.0,110790.0,1.49558505]
[1747884333222,0.03049674,110800.0,110790.0,1.76622505]
[1747884334873,0.03049674,110800.0,110790.0,1.78142505]
[1747884335071,0.03049674,110800.0,110790.0,1.7807659]
[1747884342581,0.03049674,110800.0,110790.0,1.8060994]
[1747884346258,0.03049674,110800.0,110790.0,1.79155855]
[1747884349957,0.03049674,110800.0,110790.0,1.77999051]
[1747884353046,0.04619674,110800.0,110790.0,1.77999051]
[1747884353387,0.06169674,110800.0,110790.0,1.77999051]
[1747884354504,0.03049674,110800.0,110790.0,1.77999051]
[1747884355754,0.04569674,110800.0,110790.0,1.50935051]
[1747884355930,0.04251871,110800.0,110790.0,1.77999051]
[1747884356141,0.05831871,110800.0,110790.0,1.77999051]
[1747884358344,0.05831871,110800.0,110790.0,1.50935051]
[1747884358754,0.05831871,110800.0,110790.0,1.77999051]
[1747884359153,0.05831871,110800.0,110790.0,1.50935051]
[1747884359368,0.02731871,110800.0,110790.0,1.77999051]
[1747884359815,0.05911871,110800.0,110790.0,1.62988845]
[1747884360009,0.05911871,110800.0,110790.0,1.35924845]
[1747884360211,0.05911871,110800.0,110790.0,1.62988845]
[1747884362145,0.02731871,110800.0,110790.0,1.34780603]
[1747884362369,0.02731871,110800.0,110790.0,1.62988845]
[1747884363677,0.02731871,110800.0,110790.0,1.62938119]
[1747884369878,0.02731871,110800.0,110790.0,1.35874119]
[1747884370285,0.02731871,110800.0,110790.0,1.62938119]
[1747884372504,0.02731871,110800.0,110790.0,1.35874119]
[1747884372679,0.02731871,110800.0,110790.0,1.62938119]
[1747884397096,0.05831871,110800.0,110790.0,1.35874119]
[1747884397289,0.05831871,110800.0,110790.0,1.48833998]
[1747884398479,0.05831871,110800.0,110790.0,1.62938119]
[1747884400751,0.02731871,110800.0,110790.0,1.62938119]
[1747884411869,0.0311,110840.0,110830.0,0.34]
[1747884412121,0.03124895,110840.0,110830.0,0.96821314]
[1747884412345,0.03124895,110840.0,110830.0,1.06224671]
[1747884412346,0.03970433,110840.0,110830.0,1.06224671]
[1747884412703,0.03970433,110840.0,110830.0,0.91218325]
[1747884412924,0.03970433,110840.0,110830.0,1.06224671]
[1747884413334,0.04027031,110840.0,110830.0,1.06224671]
[1747884413703,0.03424895,110840.0,110830.0,0.72224671]
[1747884413910,0.04327031,110840.0,110830.0,0.72224671]
[1747884414088,0.03124895,110840.0,110830.0,0.72224671]
[1747884414332,0.02074895,110840.0,110830.0,0.86328792]
[1747884414714,0.00214895,110840.0,110830.0,0.86328792]
[1747884415067,0.00414895,110840.0,110830.0,0.86328792]
[1747884415689,0.00414895,110840.0,110830.0,1.20328792]
[1747884416608,0.00414895,110840.0,110830.0,1.21828792]
[1747884416819,0.00214895,110840.0,110830.0,1.21828792]
[1747884417016,0.00214895,110840.0,110830.0,1.20328792]
[1747884417222,0.00114895,110840.0,110830.0,1.20328792]
[1747884417422,0.00214895,110840.0,110830.0,1.20328792]
[1747884418443,0.00214895,110840.0,110830.0,1.74242877]
[1747884418661,0.00214895,110840.0,110830.0,1.88346998]
[1747884418817,0.00214895,110840.0,110830.0,2.7866002]
[1747884419056,0.00099,110850.0,110840.0,0.22204617]
[1747884419208,0.03169,110850.0,110840.0,0.58362131]
[1747884419419,0.00099,110850.0,110840.0,1.17870337]
[1747884419613,0.00099,110850.0,110840.0,1.02206216]
[1747884419814,0.00099,110850.0,110840.0,1.36206216]
[1747884420020,0.00099,110850.0,110840.0,1.37766216]
[1747884420241,0.00099,110850.0,110840.0,1.51870337]
[1747884420448,0.0009049,110850.0,110840.0,1.99161137]
[1747884420844,0.0315,110880.0,110870.0,0.20744917]
[1747884421050,0.03164881,110880.0,110870.0,0.99176516]
[1747884421330,0.03164881,110880.0,110870.0,0.58356516]
[1747884421751,0.02506683,110880.0,110870.0,0.58356516]
[1747884421951,0.00014881,110880.0,110870.0,0.59810601]
[1747884422131,0.03154881,110880.0,110870.0,0.59810601]
[1747884422327,0.1889613,110890.0,110880.0,0.54743071]
[1747884422529,0.1889613,110890.0,110880.0,0.93722697]
[1747884422730,0.18941093,110870.0,110860.0,0.34]
[1747884422966,0.18941093,110870.0,110860.0,0.14119002]
[1747884423771,0.18941093,110870.0,110860.0,0.35098672]
[1747884423983,0.18941093,110870.0,110860.0,0.34014881]
[1747884424543,0.45997093,110870.0,110860.0,0.34114881]
[1747884424918,0.45997093,110870.0,110860.0,0.34014881]
[1747884425074,0.45997093,110870.0,110860.0,0.00014881]
[1747884425280,0.45997093,110870.0,110860.0,0.00114881]
[1747884425477,0.50097174,110870.0,110860.0,0.00114881]
[1747884426329,0.50097174,110870.0,110860.0,0.00014881]
[1747884426679,0.50097174,110870.0,110860.0,0.00114881]
[1747884426880,0.32444531,110870.0,110860.0,0.00014881]
[1747884427083,0.96036531,110870.0,110860.0,0.00014881]
[1747884427309,1.2577729,110870.0,110810.0,0.4082]
[1747884427513,0.21881937,110820.0,110810.0,0.31979446]
[1747884427728,0.22784284,110820.0,110810.0,0.30174467]
[1747884427944,0.22784284,110820.0,110810.0,0.6507688]
[1747884428153,0.23686648,110820.0,110810.0,0.19868689]
[1747884428348,0.23686648,110820.0,110810.0,0.20771118]
[1747884428549,0.23686648,110820.0,110810.0,0.44531826]
[1747884428751,0.23686648,110820.0,110810.0,0.23451475]
[1747884428956,0.23686648,110820.0,110810.0,0.79834222]
[1747884429206,0.23686648,110820.0,110810.0,0.79434222]
[1747884429403,0.23686648,110820.0,110810.0,0.79434213]
[1747884429636,0.23686648,110820.0,110810.0,0.80791583]
[1747884430158,0.23686648,110820.0,110810.0,0.81291583]
[1747884430464,0.50742648,110820.0,110810.0,0.01372265]
[1747884430691,0.48937994,110820.0,110810.0,0.23755053]
[1747884430901,0.48937994,110820.0,110810.0,0.02274702]
[1747884431111,0.48937994,110820.0,110810.0,0.76706394]
[1747884431318,0.48937994,110820.0,110810.0,0.76406394]
[1747884431625,0.48937994,110820.0,110810.0,0.77006394]
[1747884432097,0.48937994,110820.0,110810.0,0.76506394]
[1747884432303,0.48937994,110820.0,110810.0,0.76406394]
[1747884432517,0.49137994,110820.0,110810.0,0.76406394]
[1747884433211,0.002,110820.0,110810.0,1.02811546]
[1747884433617,0.002,110820.0,110810.0,1.12414903]
[1747884433819,0.002,110820.0,110810.0,1.12214903]
[1747884434025,0.02004605,110820.0,110810.0,0.90734552]
[1747884434227,0.01804605,110820.0,110810.0,0.87614552]
[1747884434636,0.20754227,110820.0,110810.0,0.86712172]
[1747884434839,0.21656574,110820.0,110810.0,0.66234225]
[1747884435045,0.21656574,110820.0,110810.0,0.88616972]
[1747884435457,0.20754227,110820.0,110810.0,0.88616972]
[1747884435679,0.20754227,110820.0,110810.0,0.88616923]
[1747884435882,0.20754227,110820.0,110810.0,0.63526963]
[1747884436089,0.20754227,110820.0,110810.0,0.86812131]
[1747884436433,0.24756583,110820.0,110810.0,0.85007314]
[1747884436638,0.62336574,110820.0,110810.0,0.85909718]
[1747884436841,0.61434227,110820.0,110810.0,0.85909718]
[1747884437076,0.61434227,110820.0,110810.0,0.7650637]
[1747884437077,0.62336583,110820.0,110810.0,0.7650637]
[1747884437273,0.61434227,110820.0,110810.0,0.76506361]
[1747884437470,0.62336583,110820.0,110810.0,0.75603957]
[1747884437677,0.61434293,110820.0,110810.0,0.76506394]
[1747884437991,0.50218373,110820.0,110810.0,0.76506394]
[1747884438187,0.51120688,110820.0,110810.0,0.77408807]
[1747884438391,0.49530688,110820.0,110810.0,0.77408807]
[1747884439040,0.49530688,110820.0,110810.0,0.78311195]
[1747884440028,0.4179701,110820.0,110810.0,0.77253825]
[1747884440230,0.60746657,110820.0,110810.0,0.77253841]
[1747884440436,0.4339701,110820.0,110810.0,0.77253841]
[1747884440662,0.61444293,110820.0,110810.0,0.74546595]
[1747884440864,0.61444293,110820.0,110810.0,0.75449016]
[1747884441377,0.60541978,110820.0,110810.0,0.57400112]
[1747884442611,0.60541978,110820.0,110810.0,0.76351437]
[1747884442826,0.60541978,110820.0,110810.0,0.75449024]
[1747884443052,0.58002401,110850.0,110830.0,0.18045655]
[1747884443053,0.60212401,110850.0,110830.0,0.18045655]
[1747884443288,0.00902152,110840.0,110830.0,0.53850097]
[1747884443511,0.02706448,110840.0,110830.0,0.5385013]
[1747884443730,0.03608633,110840.0,110830.0,0.5385013]
[1747884444123,0.04510826,110840.0,110830.0,0.5385013]
[1747884444334,0.84487033,110870.0,110860.0,0.00902038]
[1747884444537,0.84487033,110870.0,110860.0,0.22382389]
[1747884444760,0.84487033,110870.0,110860.0,0.1894281]
[1747884444761,0.84425802,110870.0,110860.0,0.1894281]
[1747884445184,0.66386609,110870.0,110860.0,0.76227197]
[1747884445387,0.66386609,110870.0,110860.0,0.78031175]
[1747884445388,0.68190449,110870.0,110860.0,0.78031175]
[1747884445604,0.69092389,110870.0,110860.0,0.78031175]
[1747884445801,0.69153629,110870.0,110860.0,0.78031175]
[1747884446007,0.04509629,110870.0,110860.0,0.78031175]
[1747884446210,0.8718483,110870.0,110860.0,0.77129194]
[1747884446422,0.8538099,110870.0,110860.0,0.75325191]
[1747884446621,0.8538099,110870.0,110860.0,0.76227205]
[1747884447186,0.8568099,110870.0,110860.0,0.76227205]
[1747884447583,0.8548099,110870.0,110860.0,0.76227205]
[1747884448041,0.2104499,110870.0,110860.0,0.76227205]
[1747884448278,0.8568099,110870.0,110860.0,0.76227205]
[1747884448792,0.8477905,110870.0,110860.0,0.5384484]
[1747884449082,0.8477905,110870.0,110860.0,0.54746862]
[1747884449284,0.83877101,110870.0,110860.0,0.34902038]
[1747884449403,0.56817101,110870.0,110860.0,0.34902038]
[1747884449622,0.67637789,110870.0,110860.0,0.77129178]
[1747884449827,0.68539746,110870.0,110860.0,0.77129194]
[1747884450660,0.8657889,110870.0,110860.0,0.77129194]
[1747884451150,0.85676982,110870.0,110860.0,0.75325191]
[1747884451354,0.8477505,110870.0,110860.0,0.5384484]
[1747884452552,0.8477505,110870.0,110860.0,0.54746862]
[1747884454012,0.8477505,110870.0,110840.0,0.043068]
[1747884454013,0.89921174,110870.0,110840.0,0.043068]
[1747884454236,0.0270644,110840.0,110830.0,0.85505021]
[1747884454460,0.03608616,110840.0,110830.0,0.43135021]
[1747884454665,0.0270644,110840.0,110830.0,0.43135021]
[1747884454906,0.0180428,110840.0,110830.0,0.43135021]
[1747884455108,0.27056,110850.0,110840.0,0.57192717]
[1747884455322,0.28860125,110850.0,110840.0,0.78673068]
[1747884455530,0.30664299,110850.0,110840.0,0.77233076]
[1747884455849,0.30664299,110850.0,110840.0,0.7813522]
[1747884457589,0.30664299,110850.0,110840.0,0.7833522]
[1747884457785,0.30664299,110850.0,110840.0,0.7823522]
[1747884457994,0.30664299,110850.0,110840.0,0.7833522]
[1747884459620,0.28860125,110850.0,110840.0,0.7833522]
[1747884459857,0.29762204,110850.0,110840.0,0.7833522]
[1747884460035,0.30664299,110850.0,110840.0,0.7984522]
[1747884460181,0.30664299,110850.0,110840.0,0.7833522]
[1747884460387,0.46902597,110850.0,110840.0,0.343]
[1747884460590,0.50162597,110850.0,110840.0,0.343]
[1747884463194,0.50162597,110850.0,110840.0,0.003]
[1747884463617,0.51004082,110850.0,110840.0,0.003]
[1747884464366,0.51004082,110850.0,110840.0,0.001]
[1747884464605,0.22056212,110840.0,110830.0,0.34]
[1747884464820,0.59224212,110840.0,110830.0,0.34]
[1747884465198,0.18947937,110830.0,110820.0,0.56382715]
[1747884465391,0.46003937,110830.0,110820.0,0.5639761]
[1747884466022,0.46003937,110830.0,110820.0,0.57299966]
[1747884466348,0.19850195,110830.0,110820.0,0.57299966]
[1747884466475,0.46906195,110830.0,110820.0,0.57299966]
[1747884466878,0.01804491,110830.0,110820.0,0.77151887]
[1747884467089,0.02906765,110830.0,110820.0,0.7624958]
[1747884467307,0.02906765,110830.0,110820.0,0.75347249]
[1747884467308,0.2095242,110830.0,110820.0,0.75347249]
[1747884467510,0.2095242,110830.0,110820.0,0.76249588]
[1747884467714,0.4811242,110830.0,110820.0,0.76249588]
[1747884468814,0.4811242,110830.0,110820.0,0.55495246]
[1747884470279,0.4811242,110830.0,110820.0,0.58515246]
[1747884470438,0.20150097,110830.0,110820.0,0.7836724]
[1747884470836,0.48112347,110830.0,110820.0,0.79269579]
[1747884471047,0.49014613,110830.0,110820.0,0.8017191]
[1747884471464,0.49014613,110830.0,110820.0,0.79269579]
[1747884471670,0.49014613,110830.0,110820.0,0.8017191]
[1747884471952,0.49014613,110830.0,110820.0,0.79269579]
[1747884472621,0.49014613,110830.0,110820.0,0.8017191]
[1747884472832,0.47210097,110830.0,110820.0,0.8017191]
[1747884473045,0.49014605,110830.0,110820.0,0.79269579]
[1747884473488,0.49014605,110830.0,110820.0,0.8017191]
[1747884473699,0.003,110830.0,110820.0,1.02554568]
[1747884473912,0.2736,110830.0,110820.0,1.02554568]
[1747884474361,0.003,110830.0,110820.0,1.11957925]
[1747884475403,0.003,110830.0,110820.0,0.90477574]
[1747884477339,0.003,110830.0,110820.0,1.11957925]
[1747884478533,0.003,110830.0,110820.0,0.90477574]
[1747884478740,0.00258462,110830.0,110820.0,0.90477574]
[1747884479431,0.00258462,110830.0,110820.0,1.31297574]
[1747884481276,0.01160671,110830.0,110820.0,1.31297574]
[1747884481482,0.19206326,110830.0,110820.0,0.43418252]
[1747884481680,0.20108625,110830.0,110820.0,0.34014895]
[1747884482125,0.00258462,110830.0,110820.0,0.84465886]
[1747884482323,0.00258462,110830.0,110820.0,1.10213231]
[1747884482526,0.2101089,110830.0,110820.0,0.55495246]
[1747884482683,0.2101089,110830.0,110820.0,0.5639761]
[1747884483016,0.2101089,110830.0,110820.0,0.55495246]
[1747884483174,0.20108657,110830.0,110820.0,0.55495246]
[1747884483374,0.20108657,110830.0,110820.0,0.5639761]
[1747884483594,0.20108657,110830.0,110820.0,0.58202313]
[1747884483794,0.20108657,110830.0,110820.0,0.57299966]
[1747884484198,0.00258462,110830.0,110820.0,1.02774577]
[1747884484426,0.00258462,110830.0,110820.0,0.81294226]
[1747884484618,0.01160687,110830.0,110820.0,0.81294226]
[1747884484768,0.0206292,110830.0,110820.0,0.81294226]
[1747884486089,0.21010817,110830.0,110820.0,0.77151927]
[1747884486291,0.21913075,110830.0,110820.0,0.76249596]
[1747884486672,0.49875349,110830.0,110820.0,0.76249588]
[1747884486846,0.49875349,110830.0,110820.0,0.77151919]
[1747884487050,0.48973075,110830.0,110820.0,0.77151919]
[1747884487264,0.48973075,110830.0,110820.0,0.76249588]
[1747884487474,0.48973075,110830.0,110820.0,0.77151919]
[1747884487853,0.48973075,110830.0,110820.0,0.57299966]
[1747884488056,0.48973124,110830.0,110820.0,0.5639761]
[1747884488283,0.48973124,110830.0,110820.0,0.57299949]
[1747884488974,0.50408649,110830.0,110820.0,0.34014895]
[1747884489195,0.51253026,110830.0,110820.0,0.00014895]
[1747884491585,0.88429026,110830.0,110820.0,0.00014895]
[1747884494300,0.97832383,110830.0,110820.0,0.00014895]
[1747884495138,0.98832383,110830.0,110820.0,0.00014895]
[1747884496146,0.99856291,110830.0,110820.0,0.00014895]
[1747884496359,1.21336642,110830.0,110820.0,0.00014895]
[1747884496620,1.22200609,110830.0,110820.0,0.00014895]
[1747884497056,1.00720258,110830.0,110820.0,0.00014895]
[1747884497494,0.99720258,110830.0,110820.0,0.00014895]
[1747884497730,1.72151547,110830.0,110820.0,0.00014895]
[1747884497936,1.65660504,110830.0,110820.0,0.00014895]
[1747884498151,1.64996537,110830.0,110820.0,0.00014895]
[1747884498616,1.64696537,110830.0,110820.0,0.00014895]
[1747884498860,1.64796537,110830.0,110820.0,0.00014895]
[1747884499068,1.64996537,110830.0,110820.0,0.00014895]
[1747884499689,1.91922772,110830.0,110820.0,0.00014895]
[1747884499902,1.92322772,110830.0,110820.0,0.00014895]
[1747884500132,0.19860915,110770.0,110760.0,0.36020553]
[1747884500348,0.84058185,110770.0,110760.0,0.36020553]
[1747884500569,0.84058185,110770.0,110760.0,0.00470553]
[1747884500790,0.20765568,110760.0,110750.0,0.0322]
[1747884501220,0.20765568,110760.0,110750.0,0.3722]
[1747884501455,0.1986274,110760.0,110750.0,0.37269674]
[1747884501666,0.01805591,110760.0,110750.0,0.78810305]
[1747884501893,0.8500138,110790.0,110780.0,0.0090269]
[1747884502106,1.25741123,110790.0,110780.0,0.03512921]
[1747884502322,1.25741123,110790.0,110780.0,0.0308]
[1747884502564,1.23936013,110790.0,110780.0,0.3708]
[1747884502809,1.23944013,110790.0,110780.0,0.3708]
[1747884503029,1.24144013,110790.0,110780.0,0.3708]
[1747884503244,1.24444013,110790.0,110780.0,0.3551]
[1747884503659,0.58433405,110790.0,110780.0,0.54466481]
[1747884503867,1.24443972,110790.0,110780.0,0.56939154]
[1747884504093,1.24443972,110790.0,110780.0,0.3798269]
[1747884504326,0.005,110790.0,110780.0,0.68866398]
[1747884504550,0.005,110790.0,110780.0,0.90669708]
[1747884505640,0.002,110790.0,110780.0,0.90669708]
[1747884505847,0.03609927,110800.0,110790.0,0.20759896]
[1747884506053,0.03609919,110800.0,110790.0,0.45460247]
[1747884506256,0.03609927,110800.0,110790.0,0.23979896]
[1747884506466,0.03609927,110800.0,110790.0,0.45460247]
[1747884506707,0.03609927,110800.0,110790.0,0.23979896]
[1747884506923,0.86393854,110810.0,110800.0,0.55455537]
[1747884507136,0.87309708,110810.0,110800.0,0.79438366]
[1747884507344,0.27987789,110810.0,110800.0,0.80340836]
[1747884507826,0.28890185,110810.0,110800.0,0.80340836]
[1747884508264,0.27987789,110810.0,110800.0,0.80340836]
[1747884508475,0.00915789,110810.0,110800.0,0.80340836]
[1747884508681,0.00013409,110810.0,110800.0,0.89744193]
[1747884508899,0.00013409,110810.0,110800.0,0.68263842]
[1747884509115,0.00113409,110810.0,110800.0,0.89744193]
[1747884510202,0.01918193,110810.0,110800.0,0.89744193]
[1747884510410,0.01015789,110810.0,110800.0,0.68263842]
[1747884510611,0.01918193,110810.0,110800.0,0.89744193]
[1747884510816,0.01918177,110810.0,110800.0,0.89744193]
[1747884511227,0.01918177,110810.0,110800.0,0.91127577]
[1747884512136,0.00113409,110810.0,110800.0,0.91127577]
[1747884512333,0.00113409,110810.0,110800.0,1.31947577]
[1747884513343,0.00013409,110810.0,110800.0,1.31947577]
[1747884513772,0.00013409,110810.0,110800.0,1.32147577]
[1747884513983,0.00013409,110810.0,110800.0,1.31947577]
[1747884514494,0.00013409,110810.0,110800.0,1.10567226]
[1747884514930,0.00013409,110810.0,110800.0,1.32247577]
[1747884515575,0.00013409,110810.0,110800.0,1.32047577]
[1747884516227,0.00013409,110810.0,110800.0,1.10567226]
[1747884516447,0.00013409,110810.0,110800.0,1.32047577]
[1747884518490,0.00013409,110810.0,110800.0,1.33501662]
[1747884518716,0.00013409,110810.0,110800.0,1.75982013]
[1747884518932,0.00013409,110810.0,110800.0,1.54501662]
[1747884519329,0.00013409,110810.0,110800.0,1.75982013]
[1747884519607,0.00013409,110810.0,110800.0,1.33021311]
[1747884520276,0.00013409,110810.0,110800.0,1.54401662]
[1747884520496,0.00013409,110810.0,110800.0,1.54801662]
[1747884521144,0.00013409,110810.0,110800.0,1.33321311]
[1747884521397,0.00013409,110810.0,110800.0,1.55001662]
[1747884521834,0.00013409,110810.0,110800.0,1.54801662]
[1747884522212,0.00013409,110810.0,110800.0,1.55101662]
[1747884526704,0.00013409,110810.0,110800.0,1.33621311]
[1747884526925,0.00013409,110810.0,110800.0,1.55101662]
[1747884529078,0.00013409,110810.0,110800.0,1.33621311]
[1747884529323,0.00013409,110810.0,110800.0,1.55101662]
[1747884531046,0.00013409,110810.0,110800.0,1.57485311]
[1747884531049,0.00013409,110810.0,110800.0,1.78965662]
[1747884531300,0.00915789,110810.0,110800.0,1.29447577]
[1747884531552,0.01818177,110810.0,110800.0,0.73064756]
[1747884531774,0.03622986,110810.0,110800.0,1.07967226]
[1747884531997,0.02720573,110810.0,110800.0,1.07967226]
[1747884532432,0.00915789,110810.0,110800.0,1.29447577]
[1747884532635,0.00915781,110810.0,110800.0,1.29447577]
[1747884533468,0.02720557,110810.0,110800.0,1.29447577]
[1747884533877,0.02720557,110810.0,110800.0,1.07967226]
[1747884534126,0.02720557,110810.0,110800.0,1.29447577]
[1747884534684,0.02720557,110810.0,110800.0,1.07967226]
[1747884535010,0.01818161,110810.0,110800.0,1.07967226]
[1747884535185,0.02720549,110810.0,110800.0,1.07967226]
[1747884535392,0.03622953,110810.0,110800.0,1.07967226]
[1747884535771,0.03622945,110810.0,110800.0,1.07967226]
[1747884536756,0.04525349,110810.0,110800.0,1.07967226]
[1747884536890,0.03622945,110810.0,110800.0,1.29447577]
[1747884538091,0.02720573,110810.0,110800.0,1.29447577]
[1747884538622,0.23067154,110810.0,110800.0,0.7552]
[1747884538830,0.23067154,110810.0,110800.0,0.4152]
[1747884539025,0.23911362,110810.0,110800.0,0.4152]
[1747884539391,0.62103342,110810.0,110800.0,0.007]
[1747884539593,0.89167342,110810.0,110800.0,0.007]
[1747884539799,0.89167342,110810.0,110800.0,0.003]
[1747884540014,0.67686991,110810.0,110800.0,0.003]
[1747884540207,0.67786991,110810.0,110800.0,0.003]
[1747884540407,0.19857329,110790.0,110780.0,0.34]
[1747884540748,0.32432315,110810.0,110790.0,0.1805086]
[1747884540981,0.00902453,110800.0,110790.0,0.41336337]
[1747884541315,0.03551633,110800.0,110790.0,0.41336337]
[1747884541523,0.02649155,110800.0,110790.0,0.41336337]
[1747884541724,0.02649147,110800.0,110790.0,0.41336337]
[1747884541876,0.04454159,110800.0,110790.0,0.41336386]
[1747884542080,0.04454159,110800.0,110790.0,0.42238945]
[1747884542297,0.03609951,110800.0,110790.0,0.43141496]
[1747884542612,0.20858031,110800.0,110790.0,0.1895346]
[1747884542820,0.19955553,110800.0,110790.0,0.19857345]
[1747884542980,0.2085808,110800.0,110790.0,0.42240263]
[1747884543188,0.2085808,110800.0,110790.0,0.19857345]
[1747884543421,0.00902551,110790.0,110780.0,0.76999391]
[1747884543594,0.0180511,110790.0,110780.0,0.84742748]
[1747884544218,0.01805045,110800.0,110790.0,0.1815217]
[1747884544477,0.01805012,110800.0,110790.0,0.41437697]
[1747884544699,0.01805012,110800.0,110790.0,0.42240264]
[1747884544952,0.19855553,110800.0,110790.0,0.41337697]
[1747884545363,0.19855553,110800.0,110790.0,0.82157697]
[1747884545577,0.50063553,110800.0,110790.0,0.4082]
[1747884545758,0.18954762,110790.0,110780.0,0.53859069]
[1747884545986,0.01805176,110790.0,110780.0,0.31863094]
[1747884546159,0.02707735,110790.0,110780.0,0.22566999]
[1747884546368,0.04512943,110790.0,110780.0,0.43144718]
[1747884547011,0.03610384,110790.0,110780.0,0.43144718]
[1747884547550,0.02707776,110790.0,110780.0,0.4404735]
[1747884547727,0.02707776,110790.0,110780.0,0.4424735]
[1747884547971,0.63015362,110790.0,110780.0,0.004]
[1747884548193,0.72418719,110790.0,110780.0,0.004]
[1747884548406,0.79726991,110790.0,110780.0,0.004]
[1747884548836,1.01207342,110790.0,110780.0,0.004]
[1747884549042,1.28275342,110790.0,110780.0,0.002]
[1747884549250,1.16498348,110790.0,110780.0,0.002]
[1747884549457,1.17340369,110790.0,110780.0,0.002]
[1747884549664,1.07937012,110790.0,110780.0,0.002]
[1747884550097,0.03611574,110750.0,110740.0,0.42680192]
[1747884550304,0.01805746,110750.0,110740.0,0.43583191]
[1747884550507,0.01805746,110750.0,110740.0,0.42680233]
[1747884550508,0.21670247,110750.0,110740.0,0.42680233]
[1747884550713,0.22573173,110750.0,110740.0,0.435832]
[1747884550908,0.02708696,110750.0,110740.0,0.775832]
[1747884551130,0.02708696,110750.0,110740.0,0.78486158]
[1747884551301,0.2168371,110750.0,110740.0,0.533939]
[1747884551518,0.20780825,110750.0,110740.0,0.7818324]
[1747884551715,0.0272207,110750.0,110740.0,0.79086198]
[1747884552531,0.03624988,110750.0,110740.0,0.79086215]
[1747884552746,0.03625053,110750.0,110740.0,0.77752612]
[1747884552949,0.1987794,110750.0,110740.0,0.56983367]
[1747884553163,0.1987794,110750.0,110740.0,0.76849678]
[1747884553367,0.1987794,110750.0,110740.0,0.76849694]
[1747884553644,0.1987794,110750.0,110740.0,0.77752677]
[1747884554265,0.1987794,110750.0,110740.0,0.77452677]
[1747884554473,0.1987794,110750.0,110740.0,0.77152677]
[1747884554679,0.1987794,110750.0,110740.0,0.55880351]
[1747884554891,0.18975022,110750.0,110740.0,0.55880351]
[1747884555127,0.00013398,110750.0,110740.0,0.74843671]
[1747884555344,0.0362502,110750.0,110740.0,0.76649621]
[1747884555746,0.02722037,110750.0,110740.0,0.77552579]
[1747884555957,0.04527856,110750.0,110740.0,0.77552579]
[1747884556216,0.01819144,110750.0,110740.0,0.76649621]
[1747884556447,0.20780735,110750.0,110740.0,0.54266303]
[1747884556662,0.21683653,110750.0,110740.0,0.75746654]
[1747884556875,0.03624963,110750.0,110740.0,0.75746654]
[1747884557080,0.04527889,110750.0,110740.0,0.76649621]
[1747884557596,0.20780866,110750.0,110740.0,0.344]
[1747884557807,0.20780866,110750.0,110740.0,0.57686357]
[1747884558236,0.20780866,110750.0,110740.0,0.55169318]
[1747884558446,0.20780866,110750.0,110740.0,0.78455627]
[1747884559171,0.19877948,110750.0,110740.0,0.76649669]
[1747884559389,0.19877948,110750.0,110740.0,0.77552652]
[1747884560231,0.19877948,110750.0,110740.0,0.56975276]
[1747884560456,0.2718622,110750.0,110740.0,0.004]
[1747884560687,0.49232934,110750.0,110740.0,0.004]
[1747884560904,0.39829577,110750.0,110740.0,0.004]
[1747884561371,0.39829577,110750.0,110740.0,0.002]
[1747884561591,0.1896332,110740.0,110730.0,0.55480351]
[1747884561808,0.1896332,110740.0,110710.0,0.22211074]
[1747884561809,0.19869851,110720.0,110710.0,0.22211074]
[1747884562024,0.00903122,110720.0,110710.0,0.88901262]
[1747884562245,0.19869851,110720.0,110710.0,0.88901262]
[1747884562452,0.01806252,110720.0,110710.0,0.90707676]
[1747884562671,0.02709398,110720.0,110710.0,0.90707676]
[1747884562906,0.18966729,110720.0,110710.0,0.53041074]
[1747884563124,0.00903048,110730.0,110720.0,0.53869883]
[1747884563348,0.42236275,110750.0,110740.0,0.20769278]
[1747884563571,0.19866311,110740.0,110730.0,0.23060351]
[1747884563797,0.01805909,110740.0,110730.0,0.39542303]
[1747884564046,0.21672204,110740.0,110730.0,0.42251505]
[1747884564280,0.02708884,110740.0,110730.0,0.43154545]
[1747884564486,0.04514874,110740.0,110730.0,0.42251505]
[1747884564700,0.22575269,110740.0,110730.0,0.42251513]
[1747884564916,0.21872253,110740.0,110730.0,0.42251513]
[1747884565129,0.22775269,110740.0,110730.0,0.43154561]
[1747884565358,0.21872253,110740.0,110730.0,0.43154561]
[1747884565566,0.22775269,110740.0,110730.0,0.42251513]
[1747884565743,0.22775269,110740.0,110720.0,0.64853175]
[1747884565951,0.0090304,110730.0,110720.0,0.86756346]
[1747884566157,0.0090304,110730.0,110720.0,1.0048334]
[1747884566158,0.01806105,110730.0,110720.0,1.0048334]
[1747884566698,0.01806096,110730.0,110720.0,1.0048334]
[1747884567107,0.01806096,110730.0,110720.0,1.0058334]
[1747884567278,0.02709161,110730.0,110720.0,1.0058334]
[1747884567481,0.02709161,110730.0,110720.0,1.0048334]
[1747884567689,0.02709161,110730.0,110720.0,1.0058334]
[1747884568329,0.01806096,110730.0,110720.0,1.0058334]
[1747884568538,0.02709169,110730.0,110720.0,1.0058334]
[1747884568738,0.01806096,110730.0,110720.0,1.0058334]
[1747884569279,0.02709169,110730.0,110720.0,1.0058334]
[1747884569478,0.01806096,110730.0,110720.0,1.4140334]
[1747884569630,0.02709161,110730.0,110720.0,1.4140334]
[1747884571149,0.2717637,110730.0,110720.0,0.551]
[1747884571353,0.10017466,110730.0,110720.0,0.74969899]
[1747884571763,0.10017466,110730.0,110720.0,0.97950242]
[1747884572030,0.00902991,110740.0,110730.0,0.19868122]
[1747884572210,0.90080204,110740.0,110730.0,0.43751538]
[1747884572411,0.89177262,110740.0,110730.0,0.43751538]